{"text_format":"1","workbook":"xlsx","n_sheets":1,"sheets":["Tabelle4"],"not_rendered":{"charts":0,"images":3,"macros":1,"external_links":0,"defined_names":1,"comments":0,"pivot_tables":0},"unopened":[],"bounds":{"document_bytes":16777216,"sheet_cells":100000,"rows_first":2000,"rows_last":500,"rows_between":2000,"halvings":0,"cell_chars":16384,"cell_head_chars":4096},"cells_cut":0,"cells_raw":0,"read":"whole","date_system":"1900"}

{"sheet":"Tabelle4","index":0,"n_rows":97,"n_cols":14,"rows_kept":97,"cut":false,"hidden":false,"merged":[[11,2,38,2],[42,2,73,2],[77,2,97,2],[38,4,38,11]]}
[]
[]
[]
[]
[]
[]
[]
[]
[null,null,"PLEASE MAKE YOUR CHOICE: STAND SPACE ONLY or FULL-SERVICE STAND (including stand construction)"]
[]
[]
[null,null,"STAND SPACE ONLY"]
[null,null,null,null,"Stand space only: Choose your stand size (m²)"]
[]
[]
[]
[null,null,null,null,"Row stand (1 side open)",null,null,null,176,"€ / m²",null,{"$f":"IF(N17=1,I17*L13,0)","v":0},null,4]
[]
[null,null,null,null,"Corner stand (2 sides open)",null,null,null,199,"€ / m²",null,{"$f":"IF(N17=2,I19*L13,0)","v":0}]
[]
[null,null,null,null,"Peninsula stand (3 sides open)",null,null,null,219,"€ / m²",null,{"$f":"IF(N17=3,I21*L13,0)","v":0}]
[]
[null,null,null,null,"Island stand (4 sides open)",null,null,null,235,"€ / m²",null,{"$f":"IF(N17=4,235*L13,0)","v":0}]
[]
[]
[]
[null,null,null,null,"Application fee",null,null,null,480,"€ / exhibitor",null,{"$f":"IF(SUM(L17:L23)>0,480,0 )","v":0}]
[]
[null,null,null,null,"AUMA contribution",null,null,null,"0.60","€ / m²",null,{"$f":"IF(SUM(L17:L23)>0,L13*0.6,0)","v":0}]
[]
[null,null,null,null,"Basic media package",null,null,null,690,"€ / exhibitor",null,{"$f":"IF(SUM(L17:L23)>0,690,0)","v":0}]
[]
[null,null,null,null,"Co-exhibitor fee ",null,0,null,305,"€ / co-exhibitor",null,{"$f":"IF(SUM(L17:L23)>0,G33*(I33+I27+I31),0)","v":0},"*)"]
[null,null,null,null,"*) comprising co-exhibitor fee, application fee, basic media package"]
[]
[]
[]
[null,null,null,null,"TOTAL (stand space only)",null,null,null,null,null,null,{"$f":"SUM(L17+L19+L21+L23+L27+L29+L31+L33)","v":0}]
[null,null,null,null,"Please kindly note that your stand invoice will also include auxiliary costs (electricity, water, tickets) in the amount of \n25 EUR/m2, also due for payment within 21 days following stand invoice. The costs for these services will be offset after the event."]
[]
[]
[]
[null,null,"FULL-SERVICE STAND"]
[null,null,null,null,"Regular full-service stand: Choose your stand size (m²)"]
[]
[]
[]
[null,null,null,null,"Full-sdervice „comfort“ row stand",null,null,null,285,"€ / m²",null,{"$f":"IF(N17=5,285*L44,0)","v":0}]
[]
[null,null,null,null,"Full-service „comfort“ corner stand",null,null,null,305,"€ / m²",null,{"$f":"IF(N17=6,305*L44,0)","v":0}]
[]
[null,null,null,null,"Full-service „superior“ row stand",null,null,null,324,"€ / m²",null,{"$f":"IF(N17=7,324*L44,0)","v":0}]
[]
[null,null,null,null,"Full-service „superior“ corner stand",null,null,null,339,"€ / m²",null,{"$f":"IF(N17=8,339*L44,0)","v":0}]
[]
[null,null,null,null,"Full-service „exclusive“ row stand",null,null,null,364,"€ / m²",null,{"$f":"IF(N17=9,364*L44,0)","v":0}]
[]
[null,null,null,null,"Full-Service „exclusive“ corner stand",null,null,null,385,"€ / m²",null,{"$f":"IF(N17=10,385*L44,0)","v":0}]
[]
[]
[]
[null,null,null,null,"Application fee",null,null,null,480,"€ / exhibitor",null,{"$f":"IF(SUM(L48:L58)>0,480,0 )","v":0}]
[]
[null,null,null,null,"Basic fee full-service stand",null,null,null,350,"€ / exhibitor",null,{"$f":"IF(SUM(L48:L58)>0,350,0 )","v":0}]
[]
[null,null,null,null,"Basic media package",null,null,null,690,"€ / exhibitor",null,{"$f":"IF(SUM(L48:L58)>0,690,0 )","v":0}]
[]
[null,null,null,null,"Co-exhibitor fee ",null,0,null,305,"€ / co-exhibitor",null,{"$f":"IF(SUM(L48:L58)>0,G68*(I68+I62+I66),0)","v":0},"*)"]
[null,null,null,null,"*) comprising co-exhibitor fee, application fee, basic media package"]
[]
[]
[]
[null,null,null,null,"TOTAL (full-service stand)",null,null,null,null,null,null,{"$f":"SUM(L48+L50+L52+L54+L56+L58+L62+L64+L66)+L68","v":0}]
[]
[]
[]
[]
[null,null,"FULL-SERVICE STAND \"CAMPUS & CAREER\""]
[null,null,null,null,"Full-service stand \"Campus & Career\": Choose your stand size (m²)"]
[]
[]
[]
[null,null,null,null,"Universities, Science & Research",null,null,null,196,"€ / m²",null,{"$f":"IF(N17=11,196*L79,0)","v":0}]
[]
[]
[]
[]
[null,null,null,null,"Corporate Enterprises",null,null,null,307,"€ / m²",null,{"$f":"IF(N17=12,307*L79,0)","v":0}]
[]
[null,null,null,null,"Application fee",null,null,null,480,"€ / exhibitor",null,{"$f":"IF(L88>0,480,0)","v":0}]
[]
[null,null,null,null,"Basic fee full-service stand",null,null,null,350,"€ / exhibitor",null,{"$f":"IF(L88>0,350,0)","v":0}]
[]
[null,null,null,null,"Basic media package",null,null,null,690,"€ / exhibitor",null,{"$f":"IF(L88,690,0)","v":0}]
[]
[]
[null,null,null,null,"TOTAL (Full-service stand \"Campus & Career\")",null,null,null,null,null,null,{"$f":"IF(N17=11,L83+J97,L88+L90+L92+L94)","v":0}]